bitfinex/quotes_ETHUSD_20250129
["timestamp","ask_amount","ask_price","bid_price","bid_amount"]
[1738120331858,3.0,3124.8,3124.3,1.07629198]
[1738120332058,0.7685,3124.9,3124.4,3.20054]
[1738120332899,3.0,3124.8,3124.3,4.27693198]
[1738120333600,3.0,3124.8,3124.3,3.97944]
[1738120333763,3.0,3124.8,3124.3,3.20064]
[1738120334092,3.96864,3124.9,3124.1,4.0282]
[1738120334093,3.20041,3124.6,3124.1,3.2009]
[1738120334306,4.500464,3124.7,3124.1,3.2009]
[1738120334485,3.8036,3124.7,3124.1,3.2009]
[1738120335603,7.00391,3124.7,3124.2,0.29764952]
[1738120336183,3.20049,3124.6,3124.2,0.29764952]
[1738120336377,3.20052,3124.5,3124.2,0.29764952]
[1738120336788,3.920963,3124.5,3124.2,0.29764952]
[1738120336991,3.20052,3124.5,3124.2,0.29764952]
[1738120337724,3.20052,3124.5,3124.1,3.203]
[1738120338022,3.20052,3124.5,3123.9,3.20106]
[1738120339829,3.20074,3124.3,3124.0,0.07708806]
[1738120340019,0.7995,3124.2,3124.0,0.07708806]
[1738120340188,0.7995,3124.2,3123.8,0.64902952]
[1738120340388,3.20052,3124.5,3123.9,3.78276573]
[1738120340617,0.7995,3124.4,3123.9,3.27819806]
[1738120340937,3.0,3124.3,3123.9,3.27819806]
[1738120341690,3.0,3124.3,3123.9,0.07708806]
[1738120341987,3.0,3124.1,3123.9,0.07708806]
[1738120342219,3.0,3124.1,3123.7,3.203]
[1738120342423,3.20103,3124.0,3123.7,3.203]
[1738120344508,0.7525,3123.9,3123.7,3.203]
[1738120344933,0.7525,3123.9,3123.1,3.98061]
[1738120345249,3.20137,3123.7,3123.2,3.187661]
[1738120345414,3.20137,3123.7,3123.2,2.536]
[1738120345740,0.8217,3123.4,3123.2,2.536]
[1738120346418,4.0234,3123.4,3123.2,2.536]
[1738120347240,0.8217,3123.4,3123.2,2.536]
[1738120347443,3.0,3124.2,3123.2,2.536]
[1738120347444,6.20149,3123.6,3123.2,2.536]
[1738120347942,3.0,3123.6,3123.2,2.536]
[1738120348100,6.20146,3123.6,3123.2,2.536]
[1738120348698,3.20154,3123.5,3123.2,2.536]
[1738120349236,3.20154,3123.5,3123.0,6.40599]
[1738120349839,3.20154,3123.5,3123.0,3.204]
[1738120350140,3.798,3123.2,3122.6,3.46339]
[1738120350407,3.798,3123.2,3122.7,3.204]
[1738120350558,3.798,3123.2,3122.7,6.40629]
[1738120351249,3.798,3123.2,3122.8,3.20221]
[1738120351554,0.798,3123.2,3122.8,3.20221]
[1738120352541,3.798,3123.2,3122.7,3.204]
[1738120352733,3.798,3123.2,3122.6,1.40929205]
[1738120352734,4.999856,3123.2,3122.6,1.40929205]
[1738120352939,3.2021,3123.0,3122.6,0.65539205]
[1738120353133,3.20233,3122.8,3122.2,4.01949]
[1738120353453,3.0,3122.7,3122.3,3.204]
[1738120353654,3.97452,3122.6,3122.0,3.20303]
[1738120353952,3.97452,3122.6,3122.1,3.20297]
[1738120354169,3.97452,3122.6,3122.0,6.40803]
[1738120354666,3.97452,3122.6,3122.0,3.205]
[1738120354831,3.97452,3122.6,3122.1,0.07655492]
[1738120355429,4.371972,3122.6,3122.1,0.07655492]
[1738120355834,3.20272,3122.4,3121.9,0.8167]
[1738120356036,3.20272,3122.4,3121.8,3.20321]
[1738120356037,6.20276,3122.3,3122.2,0.07655492]
[1738120356234,3.0,3122.2,3121.8,3.84962586]
[1738120356430,6.20279,3122.3,3121.8,6.40826]
[1738120356935,3.0,3122.3,3121.8,6.40826]
[1738120357160,3.0,3122.2,3121.8,3.205]
[1738120357574,3.0,3122.4,3121.8,6.4082]
[1738120357775,6.20269,3122.4,3121.8,6.4082]
[1738120357936,6.20269,3122.4,3121.8,9.61139]
[1738120358469,6.20269,3122.4,3121.8,6.40819]
[1738120359237,0.772,3122.6,3122.1,4.00567]
[1738120359458,3.772,3122.6,3122.1,4.00567]
[1738120359870,3.772,3122.6,3122.1,0.8027]
[1738120360051,3.772,3122.6,3122.2,3.20285]
[1738120360558,3.20223,3122.9,3122.3,3.205]
[1738120360760,3.20223,3122.9,3122.4,3.20263]
[1738120360963,3.0,3122.8,3122.4,3.20263]
[1738120362075,3.0,3123.0,3122.4,3.20263]
[1738120362387,6.20206,3123.0,3122.5,0.8259]
[1738120363158,0.7957,3123.1,3122.6,3.20235]
[1738120363456,6.20184,3123.2,3122.5,4.82407878]
[1738120363785,3.0,3123.0,3122.5,4.0284]
[1738120363993,3.0,3123.0,3122.6,3.204]
[1738120366196,0.7842,3123.2,3122.3,0.8203]
[1738120366493,3.98663,3122.7,3122.1,4.28326]
[1738120366691,3.2027,3122.4,3122.2,3.205]
[1738120366896,3.2027,3122.4,3121.9,4.0378]
[1738120367690,0.7842,3122.7,3121.7,3.3543]
[1738120367912,3.20284,3122.3,3121.7,6.55766]
[1738120368061,0.7842,3122.7,3121.8,6.44023123]
[1738120368062,3.0,3122.6,3121.8,6.44023123]
[1738120368261,3.0,3122.6,3122.1,3.20294]
[1738120369068,6.20253,3122.6,3121.9,7.38573312]
[1738120369479,6.20253,3122.6,3122.0,3.20305]
[1738120369866,6.20253,3122.6,3122.1,0.07684289]
[1738120370205,3.20265,3122.5,3122.1,0.07684289]
[1738120370403,3.20265,3122.5,3122.0,3.205]
[1738120370701,3.20265,3122.5,3122.2,0.07684289]
[1738120370898,3.20265,3122.5,3122.0,3.205]
[1738120371104,3.20265,3122.5,3122.3,0.07684289]
[1738120371280,3.20265,3122.5,3122.0,3.205]
[1738120371482,6.20265,3122.5,3122.4,0.07684289]
[1738120371671,7.221575,3122.5,3122.0,3.205]
[1738120371874,6.20265,3122.5,3122.4,0.07684289]
[1738120372069,3.20271,3122.4,3121.8,6.40824]
[1738120372270,0.7569,3122.2,3121.8,3.20324]
[1738120372571,3.20274,3122.4,3121.9,0.07684289]
[1738120372977,3.20274,3122.4,3121.8,3.20327]
[1738120373147,3.20278,3122.3,3122.0,0.07684289]
[1738120373441,3.20278,3122.3,3121.7,1.44346989]
[1738120373442,3.20278,3122.3,3121.7,7.85183989]
[1738120373624,3.20297,3122.1,3121.7,3.205]
[1738120374140,3.96004,3122.0,3121.4,3.95864]
[1738120374349,3.20297,3122.1,3121.4,3.95864]
[1738120374643,3.7569,3122.2,3121.6,3.20338]
[1738120374847,3.203,3122.1,3121.5,0.6309136]
[1738120375052,3.203,3122.1,3121.5,3.205]
[1738120375549,3.0,3122.0,3121.5,6.40858]
[1738120375755,3.7569,3122.2,3121.6,3.20342]
[1738120375932,8.0776563,3122.2,3121.6,3.20342]
[1738120376857,4.8747763,3122.2,3121.6,3.20342]
[1738120377156,4.8747763,3122.2,3121.7,3.20335]
[1738120377357,4.8747763,3122.2,3121.4,4.59243829]
[1738120377358,3.0,3122.0,3121.5,3.20355]
[1738120377523,3.20308,3122.0,3121.5,6.40855]
[1738120377864,5.0777263,3122.2,3121.6,3.20348]
[1738120378917,1.8747763,3122.2,3121.6,3.20348]
[1738120379123,3.8127,3122.6,3121.7,3.205]
[1738120379307,6.20256,3122.5,3121.9,0.8254]
[1738120379505,6.20256,3122.5,3121.9,4.02857]
[1738120380307,3.0,3122.1,3121.5,4.02893]
[1738120380556,3.75283,3122.3,3121.6,3.20341]
[1738120380859,4.829643,3122.3,3121.6,3.20341]
[1738120381060,3.0,3122.1,3121.5,4.02893]
[1738120381221,6.20299,3122.1,3121.6,3.20345]
[1738120382312,1.626813,3122.3,3121.5,7.23393]
[1738120382648,3.75278,3122.3,3121.7,3.20331]
[1738120383417,3.0,3122.1,3121.7,3.20331]
[1738120384340,3.0,3122.1,3121.5,7.23389]
[1738120384550,6.203,3122.1,3121.5,7.23389]
[1738120384722,6.203,3122.1,3121.6,3.28101667]
[1738120385048,0.7776,3121.8,3121.6,0.07757667]
[1738120385562,3.20344,3121.7,3121.2,3.206]
[1738120385741,3.2035,3121.6,3121.2,3.206]
[1738120386106,3.2035,3121.6,3120.9,3.97577]
[1738120386381,3.2037,3121.4,3120.9,3.97577]
[1738120386654,0.8166,3121.3,3121.0,6.41006]
[1738120386943,3.8166,3121.5,3121.0,3.206]
[1738120387117,7.02019,3121.5,3121.0,3.206]
[1738120387322,7.02019,3121.5,3121.0,6.41007]
[1738120387519,0.8166,3121.5,3121.0,6.41007]
[1738120387914,0.8166,3121.5,3121.1,3.20395]
[1738120388345,3.0,3121.7,3121.1,3.20393]
[1738120388551,3.0,3121.7,3121.2,3.20383]
[1738120388751,0.8166,3121.8,3121.4,3.20366]
[1738120393744,0.8166,3121.8,3121.2,3.20381]
[1738120394168,0.8166,3121.8,3121.1,3.20395]
[1738120394377,3.0,3121.7,3121.3,3.20375]
[1738120396868,3.0,3121.7,3121.4,0.65272518]
[1738120398838,6.20339,3121.7,3121.2,3.206]
[1738120399737,3.0,3121.5,3121.3,0.07828666]
[1738120399936,4.03239,3121.4,3120.7,3.20434]
[1738120400275,3.20386,3121.3,3120.8,0.07840619]
[1738120400654,4.03239,3121.4,3120.7,3.20434]
[1738120400836,3.2039,3121.2,3120.9,0.07857494]
[1738120401037,4.03239,3121.4,3120.7,3.20434]
[1738120401292,3.20339,3121.7,3121.1,3.2039]
[1738120401592,3.8287,3121.7,3121.2,3.20387]
[1738120401745,3.8287,3121.7,3121.2,3.28258558]
[1738120402095,3.0,3121.7,3121.3,3.20377]
[1738120402241,3.0,3121.9,3121.3,3.20377]
[1738120402443,6.2032,3121.9,3121.3,3.20377]
[1738120402642,6.2032,3121.9,3121.4,0.07851166]
[1738120403359,3.0,3121.9,3121.4,0.07851166]
[1738120403681,6.20322,3121.9,3121.4,0.07851166]
[1738120404083,7.226723,3121.9,3121.4,0.07851166]
[1738120404464,7.226703,3121.9,3121.4,0.07851166]
[1738120405283,3.0,3121.7,3121.4,0.07851166]
[1738120406899,4.023503,3121.9,3121.4,0.07851166]
[1738120407399,1.023503,3121.9,3121.4,0.07851166]
[1738120407600,3.8287,3122.0,3121.4,0.07851166]
[1738120408164,7.00358,3121.5,3121.4,0.07851166]
[1738120408368,3.0,3121.4,3120.7,3.20434]
[1738120408866,4.55358,3121.5,3120.7,3.20434]
[1738120409375,1.35,3121.5,3120.7,3.20434]
[1738120409580,1.35,3121.5,3121.1,3.20398]
[1738120410217,1.35,3121.5,3120.9,3.20416]
[1738120410517,1.35,3121.5,3120.5,1.4876217]
[1738120410715,1.35,3121.5,3120.9,3.20412]
[1738120411022,1.35,3121.5,3120.9,6.40822]
[1738120411232,2.105338,3121.5,3120.9,6.40822]
[1738120411736,2.105338,3121.5,3120.9,3.2041]
[1738120412116,5.308948,3121.5,3120.7,3.20436]
[1738120412275,0.8185,3121.4,3120.7,3.20436]
[1738120412480,3.8185,3121.2,3120.5,3.85576008]
[1738120412713,3.8185,3121.2,3119.4,0.76643345]
[1738120412714,0.8185,3120.6,3119.8,0.7762]
[1738120412917,3.0,3120.1,3119.5,3.20555]
[1738120413117,1.3685,3120.0,3119.3,1.49007349]
[1738120413440,1.3685,3120.0,3118.9,0.7762]
[1738120413441,0.55,3119.7,3118.9,0.7762]
[1738120413577,0.8185,3119.6,3118.8,3.33396846]
[1738120413779,0.55,3119.3,3118.8,3.33396846]
[1738120414006,3.0,3119.2,3118.8,3.33396846]
[1738120414424,3.0,3119.2,3118.7,3.33396846]
[1738120414592,3.0,3119.4,3118.7,3.33396846]
[1738120414917,0.55,3119.1,3118.8,0.06406685]
[1738120415114,6.20625,3118.9,3118.8,0.06406685]
[1738120415316,6.20625,3118.9,3118.7,3.33396846]
[1738120415317,6.20636,3118.8,3118.7,3.33396846]
[1738120415521,7.53806,3118.8,3118.7,3.33396846]
[1738120415884,7.53806,3118.8,3118.7,8.46e-06]
[1738120416080,3.20759,3117.6,3117.1,0.005]
[1738120416292,3.0,3117.5,3117.1,0.005]
[1738120416511,6.20795,3117.3,3117.1,0.005]
[1738120416714,3.0,3117.3,3117.1,0.005]
[1738120417218,3.0,3117.4,3117.1,0.005]
[1738120417987,3.20782,3117.4,3117.1,0.005]
[1738120420099,3.0,3117.2,3117.1,0.005]
[1738120420424,3.208,3117.2,3117.1,0.005]
[1738120421870,3.20768,3117.6,3117.2,0.8101]
[1738120422014,0.8271,3118.7,3117.2,0.84217582]
[1738120422214,3.20768,3117.6,3117.2,0.8101]
[1738120422511,3.2078,3117.4,3117.3,3.21]
[1738120422868,3.208,3117.2,3117.1,0.005]
[1738120424461,6.208,3117.2,3117.1,0.005]
[1738120426127,6.758,3117.2,3117.1,0.005]
[1738120426329,7.83688,3117.2,3117.1,0.005]
[1738120429858,7.83688,3117.2,3117.1,1e-05]
[1738120430027,8.63768,3117.2,3117.1,1e-05]
[1738120432864,8.62968,3117.2,3117.1,1e-05]
[1738120433626,8.62117858,3117.2,3117.1,1e-05]
[1738120441201,9.26548197,3117.2,3117.1,1e-05]
[1738120442309,14.63548197,3117.2,3117.1,1e-05]
[1738120442601,3.20965,3115.6,3115.2,3.3586]
[1738120442801,0.8131,3115.9,3115.2,2.542]
[1738120442802,3.20996,3115.3,3115.2,2.542]
[1738120443004,3.21066,3114.7,3114.5,0.62663805]
[1738120443210,3.2107,3114.6,3114.4,0.8166]
[1738120443411,3.21078,3114.5,3114.4,0.8166]
[1738120443717,3.21078,3114.5,3114.1,4.0296]
[1738120444010,3.21066,3114.7,3114.1,4.0296]
[1738120444190,3.21066,3114.7,3114.1,5.612819]
[1738120444372,3.21066,3114.7,3114.1,8.823919]
[1738120444791,3.21066,3114.7,3114.2,0.0646907]
[1738120446418,3.2107,3114.6,3114.2,0.0646907]
[1738120446624,3.21066,3114.7,3114.2,0.0646907]
[1738120447613,3.0,3115.2,3114.2,0.0646907]
[1738120447614,3.0,3115.0,3114.5,3.21075]
[1738120447799,3.21014,3115.2,3114.6,0.7845]
[1738120448001,3.0,3115.0,3114.6,0.7845]
[1738120448309,3.0,3115.0,3114.7,0.0646907]
[1738120449478,3.21031,3115.0,3114.7,0.0646907]
[1738120449690,3.21044,3114.9,3114.7,0.0646907]
[1738120451421,3.2101,3115.2,3114.7,0.0646907]
[1738120451622,3.21028,3115.0,3114.7,0.0646907]
[1738120452320,3.21047,3114.9,3114.7,0.0646907]
[1738120456526,3.2103,3115.0,3114.7,0.0646907]
[1738120459121,3.20983,3115.5,3114.9,3.97894]
[1738120459301,3.20983,3115.5,3114.9,4.70434807]
[1738120459696,3.20983,3115.5,3115.0,0.06642516]
[1738120461593,3.20937,3115.9,3115.2,0.7686]
[1738120461797,3.20924,3116.0,3115.4,3.20978]
[1738120462015,3.20913,3116.2,3115.5,3.20973]
[1738120462329,3.20924,3116.0,3115.6,0.7686]
[1738120462502,3.2094,3115.9,3115.6,0.7686]
[1738120462844,3.20924,3116.0,3115.7,0.06572709]
[1738120463297,3.20906,3116.2,3115.7,0.06572709]
[1738120463503,3.20914,3116.1,3115.7,0.06572709]
[1738120463703,3.20925,3116.0,3115.7,0.06572709]
[1738120464551,0.55,3116.3,3115.7,0.06572709]
[1738120464843,3.20944,3115.8,3115.7,0.06572709]
[1738120465199,3.20958,3115.7,3115.3,0.7686]
[1738120467855,3.20947,3115.8,3115.3,0.7686]
[1738120468547,3.20914,3116.1,3115.3,0.80069845]
[1738120468754,3.20914,3116.1,3115.3,0.7686]
[1738120468955,0.55,3116.3,3115.3,0.7686]
[1738120469144,3.0,3116.2,3115.6,3.20959]
[1738120469852,3.0,3116.2,3115.8,3.20944]
[1738120470155,8.57875,3116.5,3115.8,3.20944]
[1738120470357,3.0,3116.4,3115.9,3.20931]
[1738120471117,6.20884,3116.4,3115.9,3.20931]
[1738120472157,3.2087,3116.6,3115.9,3.20931]
[1738120472458,3.2087,3116.6,3116.1,0.8225]
[1738120472858,3.2087,3116.6,3116.1,4.03163]
[1738120474430,3.2087,3116.6,3116.1,0.8225]
[1738120474635,3.20884,3116.4,3116.1,0.8225]
[1738120474833,3.20884,3116.4,3116.2,0.06448638]
[1738120475159,6.4174,3116.6,3116.2,0.06448638]
[1738120475482,3.20876,3116.5,3116.2,0.06448638]
[1738120475969,3.2087,3116.6,3116.2,0.06448638]
[1738120477775,3.52957,3116.6,3116.2,0.06448638]
[1738120477982,3.20876,3116.5,3116.2,0.06448638]
[1738120481152,3.20893,3116.3,3116.2,0.06448638]
[1738120481477,3.20893,3116.3,3115.8,0.7722]
[1738120481689,6.41795,3116.3,3115.8,0.7722]
[1738120481894,3.850725,3116.3,3115.8,0.7722]
[1738120482179,3.2092,3116.1,3115.9,0.06409879]
[1738120482885,3.20893,3116.3,3115.9,0.06409879]
[1738120484149,3.20903,3116.2,3115.9,0.06409879]
[1738120484348,3.20881,3116.5,3115.9,3.27336879]
[1738120484564,4.28218,3116.6,3116.0,3.20916]
[1738120484565,3.5295,3116.6,3116.0,3.20916]
[1738120484878,3.0,3116.5,3116.0,3.20916]
[1738120485040,3.0,3116.5,3116.1,0.06409879]
[1738120485246,6.20874,3116.5,3116.1,0.06409879]
[1738120486872,0.32087,3116.6,3116.1,0.06409879]
[1738120487079,3.20903,3116.2,3116.1,0.06409879]
[1738120487282,3.20903,3116.2,3115.8,0.7722]
[1738120487475,3.20914,3116.1,3115.8,0.7722]
[1738120489603,3.20914,3116.1,3115.6,5.38]
[1738120489604,3.20925,3116.0,3115.6,5.38]
[1738120489797,3.20925,3116.0,3115.9,0.06447929]
[1738120490118,3.20925,3116.0,3115.9,0.06448634]
[1738120490408,3.20925,3116.0,3115.6,5.38]
[1738120490608,3.20925,3116.0,3115.9,0.06448634]
[1738120490820,3.20925,3116.0,3115.6,5.38]
[1738120490996,3.20925,3116.0,3115.9,0.06457091]
[1738120491186,3.20912,3116.2,3115.6,8.58964]
[1738120491380,3.20898,3116.3,3115.9,0.06457091]
[1738120491697,3.20898,3116.3,3116.0,0.06457091]
[1738120491898,3.20909,3116.2,3115.9,0.8327]
[1738120492100,3.20898,3116.3,3116.1,0.06447929]
[1738120492276,3.20903,3116.2,3115.9,0.8327]
[1738120494912,0.7591,3116.5,3115.9,0.8327]
[1738120495119,3.20895,3116.3,3115.9,0.8327]
[1738120496621,3.20878,3116.5,3115.9,4.04201]
[1738120496917,3.850514,3116.5,3115.9,4.04201]
[1738120497693,3.20885,3116.4,3115.9,4.04201]
[1738120497906,3.20894,3116.3,3115.9,0.8327]
[1738120498234,3.20924,3116.0,3115.6,0.7819]
[1738120498382,3.99036,3116.2,3115.3,3.20993]
[1738120498383,0.55,3116.1,3115.3,0.7819]
[1738120498584,0.55,3116.1,3114.9,0.72540807]
[1738120498585,3.21007,3115.2,3114.9,0.7819]
[1738120498883,3.531087,3115.2,3114.9,0.7819]
[1738120499109,3.531087,3115.2,3114.5,3.933532]
[1738120499110,3.21031,3115.0,3114.5,0.721532]
[1738120499416,3.21068,3114.6,3114.5,0.721532]
[1738120500009,3.21068,3114.6,3114.4,2.543]
[1738120500327,3.21078,3114.5,3114.4,2.543]
[1738120501321,8.179217,3114.5,3114.4,2.543]
[1738120501521,3.21151,3113.8,3113.3,0.8]
[1738120501721,3.21163,3113.7,3113.4,3.214]
[1738120501923,3.21151,3113.8,3113.4,3.27759889]
[1738120502095,3.21132,3114.0,3113.4,3.27759889]
[1738120502300,3.21132,3114.0,3113.4,6.48949889]
[1738120502501,3.0,3114.1,3113.5,3.21179]
[1738120502701,3.0,3114.1,3113.5,0.06147893]
[1738120502936,3.0,3114.1,3113.5,3.27325893]
[1738120503438,3.21141,3113.9,3113.5,0.06147893]
[1738120503761,3.21121,3114.1,3113.4,3.214]
[1738120503907,3.21121,3114.1,3113.6,0.06147893]
[1738120504105,3.21121,3114.1,3113.3,4.01193]
[1738120504405,3.21121,3114.1,3113.7,0.06147893]
[1738120504608,3.21121,3114.1,3113.3,4.48195802]
[1738120505130,3.21121,3114.1,3113.4,0.06147893]
[1738120505344,6.211,3114.3,3113.5,3.21178]
[1738120505503,6.211,3114.3,3113.7,3.9648]
[1738120505703,3.21059,3114.7,3113.7,1.47710533]
[1738120505938,0.8043,3114.8,3114.1,3.2111]
[1738120506140,3.21053,3114.8,3114.0,3.21121]
[1738120506345,3.21033,3115.0,3114.2,3.21101]
[1738120506502,3.0,3114.9,3114.2,3.21101]
[1738120507042,3.0,3114.9,3114.3,0.81567333]
[1738120507339,3.2105,3114.8,3114.3,0.81567333]
[1738120508038,0.4335637,3115.0,3114.3,0.81567333]
[1738120508342,3.21052,3114.8,3114.3,0.81567333]
[1738120509019,3.21069,3114.6,3114.3,0.81567333]
[1738120509628,4.00419,3114.6,3114.3,0.06247333]
[1738120509827,3.21089,3114.4,3114.3,0.06247333]
[1738120510138,3.2114,3113.9,3113.4,0.8192]
[1738120510344,3.2114,3113.9,3113.4,4.0332]
[1738120510636,3.2114,3113.9,3113.4,4.66156779]
[1738120511008,3.21112,3114.2,3113.5,3.21178]
[1738120511343,3.0,3114.3,3113.8,3.97968]
[1738120511942,6.21106,3114.3,3113.8,0.7682]
[1738120512145,3.0,3114.3,3113.8,0.7682]
[1738120512443,3.21082,3114.5,3113.8,0.7682]
[1738120512649,6.21091,3114.4,3113.8,0.7682]
[1738120513850,3.21105,3114.3,3113.8,0.7682]
[1738120514234,0.642121,3114.6,3113.8,0.7682]
[1738120514235,6.21084,3114.5,3113.8,3.9797]
[1738120514616,3.21091,3114.4,3113.8,3.9797]
[1738120517045,0.8149,3114.7,3113.8,0.7682]
[1738120517234,3.21104,3114.3,3113.8,0.7682]
[1738120518463,3.21089,3114.4,3113.8,3.97963]
[1738120519842,3.21075,3114.6,3113.9,0.06271319]
[1738120520062,3.0,3114.5,3114.0,3.21127]
[1738120520362,3.0,3114.4,3114.1,0.06298832]
[1738120521062,3.0,3114.4,3113.9,3.21139]
[1738120521268,3.0,3114.4,3114.2,0.06298832]
[1738120521561,3.0,3114.4,3113.9,3.21139]
[1738120521769,3.0,3114.4,3114.3,0.06298832]
[1738120521974,3.0,3114.4,3113.9,3.21139]
[1738120522132,6.21089,3114.4,3114.3,0.06298832]
[1738120522331,6.21089,3114.4,3113.8,3.97963]
[1738120522528,3.21099,3114.3,3113.8,5.020059]
[1738120522831,3.21099,3114.3,3113.8,3.97963]
[1738120523028,3.21136,3114.0,3113.8,0.7682]
[1738120523384,3.21168,3113.7,3113.2,0.8015]
[1738120523692,3.21168,3113.7,3113.2,0.8833368]
[1738120524751,0.7689,3113.9,3113.2,0.8833368]
[1738120524952,3.21185,3113.5,3113.2,0.8833368]
[1738120525179,3.64342,3113.8,3113.2,0.8833368]
[1738120525364,3.21163,3113.7,3113.2,0.8833368]
[1738120525566,3.21183,3113.5,3113.2,0.8833368]
[1738120525956,3.21177,3113.6,3113.2,0.8833368]
[1738120526345,3.21183,3113.5,3113.2,0.0818368]
[1738120526549,3.21177,3113.6,3113.2,0.0818368]
[1738120528777,3.64342,3113.8,3113.2,0.0818368]
[1738120528978,3.21161,3113.7,3113.2,0.0818368]
[1738120529483,3.21152,3113.8,3113.2,3.2938868]
[1738120529691,3.21152,3113.8,3113.2,0.0818368]
[1738120530292,3.21152,3113.8,3113.3,3.21198]
[1738120530488,3.0,3113.9,3113.3,3.2938168]
[1738120530694,3.21114,3114.2,3113.5,3.21178]
[1738120530863,3.21114,3114.2,3113.6,3.2117]
[1738120531493,3.21114,3114.2,3113.6,3.2935368]
[1738120531697,3.0,3114.4,3113.9,0.7734]
[1738120531992,8.58081,3114.5,3113.9,0.7734]
[1738120532192,5.37,3114.5,3113.9,0.7734]
[1738120532399,5.37,3114.5,3114.0,3.21123]
[1738120532694,3.0,3114.4,3114.0,3.2930668]
[1738120532856,5.37,3114.5,3114.0,3.2930668]
[1738120533258,5.37,3114.5,3114.0,6.5042968]
[1738120533259,3.0,3114.4,3114.0,6.5042968]
[1738120533459,5.37,3114.5,3114.0,3.2930668]
[1738120533855,5.37,3114.5,3114.2,3.21108]
[1738120534071,3.2103,3115.0,3114.3,0.7811]
[1738120534359,3.21042,3114.9,3114.3,3.992]
[1738120534572,3.0,3114.8,3114.3,3.992]
[1738120534759,3.0,3114.8,3114.4,0.06112159]
[1738120535699,3.0,3114.8,3114.4,3.27200159]
[1738120536591,3.0,3115.0,3114.4,3.27200159]
[1738120536805,1.084207,3115.2,3114.4,3.27200159]
[1738120536978,3.0,3115.0,3114.6,3.21067]
[1738120537366,3.0,3115.0,3114.7,0.06093815]
[1738120538202,6.21029,3115.0,3114.4,3.21088]
[1738120538415,6.21029,3115.0,3114.8,0.06093815]
[1738120538614,6.21029,3115.0,3114.4,3.21088]
[1738120538823,3.0,3115.0,3114.9,0.06093815]
[1738120539119,3.0,3115.0,3114.5,3.21071]
[1738120539322,6.21027,3115.0,3114.9,0.06093815]
[1738120539483,3.0,3115.0,3114.9,0.06093815]
[1738120539682,3.0,3115.0,3114.5,3.21071]
[1738120540106,3.0,3115.0,3114.6,0.06093815]
[1738120540815,4.084207,3115.2,3114.6,3.27160815]
[1738120541116,7.294347,3115.2,3114.6,3.27160815]
[1738120541297,6.531147,3115.2,3114.6,3.27160815]
[1738120541931,3.2098,3115.5,3114.7,0.7871]
[1738120542081,3.2098,3115.5,3114.7,0.84750898]
[1738120542286,3.2098,3115.5,3114.9,3.21035]
[1738120542503,3.0,3115.4,3115.0,0.06020441]
[1738120543022,3.2098,3115.5,3115.0,0.06020441]
[1738120544935,3.20958,3115.7,3115.1,0.78]
[1738120545140,3.20938,3115.9,3115.4,3.20984]
[1738120545339,3.20915,3116.1,3115.5,3.20973]
[1738120545504,3.20915,3116.1,3115.6,0.78]
[1738120545703,3.20934,3115.9,3115.6,0.78]
[1738120545900,3.20934,3115.9,3115.7,0.06002809]
[1738120546838,3.20867,3116.6,3115.7,0.06002809]
[1738120546839,3.20894,3116.3,3115.7,3.26951809]
[1738120547056,3.20908,3116.2,3115.7,0.06002809]
[1738120548342,3.20908,3116.2,3115.7,3.26954809]
[1738120549315,0.55,3116.1,3115.7,0.06002809]
[1738120549516,3.20944,3115.8,3115.7,0.06002809]
[1738120549742,3.20944,3115.8,3115.2,6.86425445]
[1738120549903,3.20927,3116.0,3115.7,0.06002809]
[1738120550104,3.930071,3116.0,3115.2,9.41579]
[1738120550417,7.139411,3116.0,3115.3,3.26990809]
[1738120550946,3.20927,3116.0,3115.5,3.20974]
[1738120551120,3.20927,3116.0,3115.2,9.41582]
[1738120551321,3.20935,3115.9,3115.6,0.06002809]
[1738120551521,0.8129,3116.3,3115.2,9.41582]
[1738120551711,3.20957,3115.7,3115.2,9.41582]
[1738120551911,3.20957,3115.7,3115.2,4.03582]
[1738120552514,3.20935,3115.9,3115.3,3.20995]
[1738120552914,3.20915,3116.1,3115.4,3.20976]
[1738120553119,3.20915,3116.1,3115.5,0.7778]
[1738120553466,3.20906,3116.2,3115.5,0.7778]
[1738120553672,3.0,3116.1,3115.5,0.7778]
[1738120554135,3.0,3116.1,3115.6,3.20963]
[1738120559574,3.20872,3116.6,3115.8,3.20941]
[1738120559873,3.20872,3116.6,3116.0,3.2092]
[1738120560075,3.0,3116.5,3116.0,3.2092]
[1738120560283,6.20876,3116.5,3116.0,3.2092]
[1738120560587,3.0,3116.5,3115.8,3.20941]
[1738120560879,4.233891,3116.5,3115.7,0.775]
[1738120561092,3.20903,3116.2,3115.7,0.775]
[1738120561700,3.0,3116.3,3115.7,3.98453]
[1738120561995,3.0,3116.3,3115.8,3.20942]
[1738120562702,0.8306,3116.9,3116.2,3.20903]
[1738120562997,0.8306,3116.9,3115.8,0.7194]
[1738120562998,3.20817,3117.1,3116.6,0.8228]
[1738120563202,0.55,3117.1,3116.6,0.8228]
[1738120563373,3.20837,3116.9,3116.6,0.8228]
[1738120564213,3.0,3116.8,3116.3,0.8195]
[1738120564496,0.55,3116.5,3115.8,5.38]
[1738120564719,3.20883,3116.4,3115.8,5.38]
[1738120564897,3.20883,3116.4,3115.9,0.05822321]
[1738120565209,6.41826,3116.2,3115.9,0.05822321]